fUSD/lending_fUSD_20260621
["ID","MTS","AMOUNT","RATE_DAILY","PERIOD"]
[425934517,1782037898000,-500.0,0.00029589,2]
[425934520,1782037898000,-500.0,0.00029589,2]
[425934515,1782037898000,-500.0,0.00029589,2]
[425934522,1782037898000,-500.0,0.00029589,2]
[425934518,1782037898000,-500.0,0.00029589,2]
[425934492,1782037898000,-3766.43,0.00029588,2]
[425934516,1782037898000,-500.0,0.00029589,2]
[425934505,1782037898000,-516.95,0.00029588,2]
[425934521,1782037898000,-500.0,0.00029589,2]
[425934506,1782037898000,-3922.95,0.00029588,2]
[425934491,1782037898000,-2151.96,0.00029588,2]
[425934503,1782037898000,-6020.43,0.00029588,2]
[425934486,1782037898000,-990.59026533,0.0002957,2]
[425934489,1782037898000,-250.0,0.00029579,13]
[425934495,1782037898000,-4510.31,0.00029588,2]
[425934493,1782037898000,-5328.39,0.00029588,2]
[425934498,1782037898000,-4096.63,0.00029588,2]
[425934487,1782037898000,-196.86469555,0.00029571,2]
[425934514,1782037898000,-500.0,0.00029589,2]
[425934497,1782037898000,-698.7,0.00029588,2]
[425934500,1782037898000,-500.0,0.00029588,2]
[425934501,1782037898000,-4086.22,0.00029588,2]
[425934494,1782037898000,-3324.04,0.00029588,2]
[425934502,1782037898000,-8988.97,0.00029588,2]
[425934496,1782037898000,-7986.83,0.00029588,2]
[425934499,1782037898000,-9938.39,0.00029588,2]
[425934596,1782037899000,-760.34,0.00029589,2]
[425934597,1782037899000,-538.31,0.00029589,2]
[425934601,1782037899000,-500.0,0.00029589,2]
[425934598,1782037899000,-501.12,0.00029589,2]
[425934594,1782037899000,-500.0,0.00029589,2]
[425934591,1782037899000,-500.0,0.00029589,2]
[425934602,1782037899000,-629.24,0.00029589,2]
[425934593,1782037899000,-500.0,0.00029589,2]
[425934600,1782037899000,-500.0,0.00029589,2]
[425934592,1782037899000,-500.0,0.00029589,2]
[425934595,1782037899000,-500.0,0.00029589,2]
[425934599,1782037899000,-500.0,0.00029589,2]
[425934609,1782037899000,-500.0,0.00029589,2]
[425934605,1782037899000,-500.0,0.00029589,2]
[425934612,1782037899000,-571.62,0.00029589,2]
[425934608,1782037899000,-500.0,0.00029589,2]
[425934611,1782037899000,-500.0,0.00029589,2]
[425934613,1782037899000,-500.0,0.00029589,2]
[425934607,1782037899000,-1098.71,0.00029589,2]
[425934604,1782037899000,-794.81,0.00029589,2]
[425934610,1782037899000,-500.0,0.00029589,2]
[425934615,1782037899000,-500.0,0.00029589,2]
[425934614,1782037899000,-500.0,0.00029589,2]
[425934589,1782037899000,-500.0,0.00029589,2]
[425934603,1782037899000,-500.0,0.00029589,2]
[425934588,1782037899000,-391.1909326,0.00029589,2]
[425934575,1782037899000,-672.23,0.00029589,2]
[425934587,1782037899000,-500.0,0.00029589,2]
[425934564,1782037899000,-500.0,0.00029589,2]
[425934562,1782037899000,-500.0,0.00029589,2]
[425934563,1782037899000,-527.08,0.00029589,2]
[425934566,1782037899000,-500.0,0.00029589,2]
[425934565,1782037899000,-500.0,0.00029589,2]
[425934568,1782037899000,-500.0,0.00029589,2]
[425934567,1782037899000,-500.0,0.00029589,2]
[425934578,1782037899000,-500.0,0.00029589,2]
[425934571,1782037899000,-500.0,0.00029589,2]
[425934569,1782037899000,-500.0,0.00029589,2]
[425934616,1782037899000,-500.0,0.00029589,2]
[425934572,1782037899000,-500.0,0.00029589,2]
[425934570,1782037899000,-500.0,0.00029589,2]
[425934574,1782037899000,-500.0,0.00029589,2]
[425934573,1782037899000,-671.4,0.00029589,2]
[425934576,1782037899000,-508.75,0.00029589,2]
[425934577,1782037899000,-512.6,0.00029589,2]
[425934579,1782037899000,-500.0,0.00029589,2]
[425934581,1782037899000,-1403.38,0.00029589,2]
[425934580,1782037899000,-665.42,0.00029589,2]
[425934590,1782037899000,-705.26,0.00029589,2]
[425934584,1782037899000,-613.31,0.00029589,2]
[425934586,1782037899000,-500.0,0.00029589,2]
[425934583,1782037899000,-500.0,0.00029589,2]
[425934585,1782037899000,-795.25,0.00029589,2]
[425934582,1782037899000,-500.0,0.00029589,2]
[425934618,1782037899000,-683.19,0.00029589,2]
[425934606,1782037899000,-935.29,0.00029589,2]
[425934623,1782037899000,-214.04173025,0.00029589,2]
[425934655,1782037899000,-500.0,0.00029589,2]
[425934649,1782037899000,-500.0,0.00029589,2]
[425934650,1782037899000,-689.94,0.00029589,2]
[425934653,1782037899000,-526.4,0.00029589,2]
[425934656,1782037899000,-500.0,0.00029589,2]
[425934654,1782037899000,-4702.75,0.00029589,2]
[425934658,1782037899000,-816.63,0.00029589,2]
[425934652,1782037899000,-1075.1,0.00029589,2]
[425934657,1782037899000,-500.0,0.00029589,2]
[425934659,1782037899000,-500.0,0.00029589,2]
[425934660,1782037899000,-500.0,0.00029589,2]
[425934662,1782037899000,-500.0,0.00029589,2]
[425934663,1782037899000,-500.0,0.00029589,2]
[425934666,1782037899000,-500.0,0.00029589,2]
[425934665,1782037899000,-500.0,0.00029589,2]
[425934668,1782037899000,-986.57,0.00029589,2]
[425934667,1782037899000,-500.0,0.00029589,2]
[425934664,1782037899000,-610.84,0.00029589,2]
[425934669,1782037899000,-500.0,0.00029589,2]
[425934670,1782037899000,-500.0,0.00029589,2]
[425934671,1782037899000,-501.06783589,0.00029589,2]
[425934674,1782037899000,-500.0,0.00029589,2]
[425934673,1782037899000,-500.0,0.00029589,2]
[425934672,1782037899000,-168.64796585,0.00029589,2]
[425934620,1782037899000,-973.68,0.00029589,2]
[425934651,1782037899000,-500.0,0.00029589,2]
[425934648,1782037899000,-1005.32,0.00029589,2]
[425934661,1782037899000,-500.0,0.00029589,2]
[425934646,1782037899000,-660.08,0.00029589,2]
[425934621,1782037899000,-500.0,0.00029589,2]
[425934645,1782037899000,-500.0,0.00029589,2]
[425934622,1782037899000,-529.79,0.00029589,2]
[425934624,1782037899000,-509.25,0.00029589,2]
[425934617,1782037899000,-500.0,0.00029589,2]
[425934619,1782037899000,-500.0,0.00029589,2]
[425934625,1782037899000,-4661.92,0.00029589,2]
[425934627,1782037899000,-500.0,0.00029589,2]
[425934628,1782037899000,-500.0,0.00029589,2]
[425934630,1782037899000,-500.0,0.00029589,2]
[425934631,1782037899000,-540.67,0.00029589,2]
[425934626,1782037899000,-500.0,0.00029589,2]
[425934633,1782037899000,-741.11,0.00029589,2]
[425934629,1782037899000,-500.0,0.00029589,2]
[425934643,1782037899000,-1112.44,0.00029589,2]
[425934644,1782037899000,-882.02,0.00029589,2]
[425934632,1782037899000,-500.0,0.00029589,2]
[425934642,1782037899000,-500.0,0.00029589,2]
[425934641,1782037899000,-882.43,0.00029589,2]
[425934639,1782037899000,-500.0,0.00029589,2]
[425934638,1782037899000,-500.0,0.00029589,2]
[425934640,1782037899000,-500.0,0.00029589,2]
[425934647,1782037899000,-570.70262223,0.00029589,2]
[425934637,1782037899000,-865.71,0.00029589,2]
[425934635,1782037899000,-500.0,0.00029589,2]
[425934634,1782037899000,-547.54,0.00029589,2]
[425934636,1782037899000,-500.0,0.00029589,2]
[425934714,1782037900000,-500.0,0.00029589,2]
[425934717,1782037900000,-1143.85,0.00029589,2]
[425934712,1782037900000,-819.6,0.00029589,2]
[425934715,1782037900000,-500.0,0.00029589,2]
[425934709,1782037900000,-500.0,0.00029589,2]
[425934708,1782037900000,-375.53689497,0.00029589,2]
[425934711,1782037900000,-539.15,0.00029589,2]
[425934713,1782037900000,-161.00287,0.00029589,2]
[425934710,1782037900000,-500.0,0.00029589,2]
[425934707,1782037900000,-824.86,0.00029589,2]
[425934718,1782037900000,-500.0,0.00029589,2]
[425934716,1782037900000,-500.0,0.00029589,2]
[425934720,1782037900000,-500.0,0.00029589,2]
[425934732,1782037900000,-500.0,0.00029589,2]
[425934719,1782037900000,-500.0,0.00029589,2]
[425934721,1782037900000,-207.84,0.00029589,2]
[425934723,1782037900000,-500.0,0.00029589,2]
[425934727,1782037900000,-42571.055771,0.00029589,2]
[425934730,1782037900000,-500.0,0.00029589,2]
[425934725,1782037900000,-500.0,0.00029589,2]
[425934724,1782037900000,-500.0,0.00029589,2]
[425934728,1782037900000,-500.0,0.00029589,2]
[425934726,1782037900000,-1325.61,0.00029589,2]
[425934729,1782037900000,-500.0,0.00029589,2]
[425934742,1782037900000,-500.0,0.00029589,2]
[425934704,1782037900000,-500.0,0.00029589,2]
[425934722,1782037900000,-253.97210808,0.00029589,2]
[425934705,1782037900000,-500.0,0.00029589,2]
[425934681,1782037900000,-903.99,0.00029589,2]
[425934702,1782037900000,-500.0,0.00029589,2]
[425934731,1782037900000,-500.0,0.00029589,2]
[425934675,1782037900000,-500.0,0.00029589,2]
[425934680,1782037900000,-500.0,0.00029589,2]
[425934679,1782037900000,-3968.18,0.00029589,2]
[425934677,1782037900000,-500.0,0.00029589,2]
[425934676,1782037900000,-500.0,0.00029589,2]
[425934678,1782037900000,-500.0,0.00029589,2]
[425934683,1782037900000,-500.0,0.00029589,2]
[425934693,1782037900000,-500.0,0.00029589,2]
[425934694,1782037900000,-500.0,0.00029589,2]
[425934686,1782037900000,-500.0,0.00029589,2]
[425934685,1782037900000,-544.00232588,0.00029589,2]
[425934687,1782037900000,-515.32,0.00029589,2]
[425934682,1782037900000,-500.0,0.00029589,2]
[425934690,1782037900000,-500.0,0.00029589,2]
[425934692,1782037900000,-500.0,0.00029589,2]
[425934689,1782037900000,-591.28,0.00029589,2]
[425934691,1782037900000,-500.0,0.00029589,2]
[425934688,1782037900000,-602.26273433,0.00029589,2]
[425934706,1782037900000,-500.0,0.00029589,2]
[425934696,1782037900000,-500.0,0.00029589,2]
[425934699,1782037900000,-500.0,0.00029589,2]
[425934697,1782037900000,-933.57,0.00029589,2]
[425934695,1782037900000,-500.0,0.00029589,2]
[425934700,1782037900000,-500.0,0.00029589,2]
[425934701,1782037900000,-2926.49,0.00029589,2]
[425934703,1782037900000,-500.0,0.00029589,2]
[425934698,1782037900000,-500.0,0.00029589,2]
[425934733,1782037900000,-500.0,0.00029589,2]
[425934684,1782037900000,-500.0,0.00029589,2]
[425934735,1782037900000,-500.0,0.00029589,2]
[425934770,1782037900000,-500.0,0.00029589,2]
[425934771,1782037900000,-5206.76,0.00029589,2]
[425934773,1782037900000,-757.98,0.00029589,2]
[425934779,1782037900000,-1000.0,0.00029589,2]
[425934774,1782037900000,-500.0,0.00029589,2]
[425934776,1782037900000,-500.0,0.00029589,2]
[425934768,1782037900000,-500.0,0.00029589,2]
[425934778,1782037900000,-500.0,0.00029589,2]
[425934775,1782037900000,-1345.44,0.00029589,2]
[425934772,1782037900000,-1744.77,0.00029589,2]
[425934777,1782037900000,-500.0,0.00029589,2]
[425934791,1782037900000,-500.0,0.00029589,2]
[425934780,1782037900000,-500.0,0.00029589,2]
[425934792,1782037900000,-500.0,0.00029589,2]
[425934795,1782037900000,-606.08,0.00029589,2]
[425934789,1782037900000,-339.24597418,0.00029589,2]
[425934785,1782037900000,-1205.38,0.00029589,2]
[425934786,1782037900000,-292.07092171,0.00029589,2]
[425934783,1782037900000,-500.0,0.00029589,2]
[425934788,1782037900000,-500.0,0.00029589,2]
[425934790,1782037900000,-608.71,0.00029589,2]
[425934782,1782037900000,-500.0,0.00029589,2]
[425934784,1782037900000,-500.0,0.00029589,2]
[425934787,1782037900000,-500.0,0.00029589,2]
[425934793,1782037900000,-853.67,0.00029589,2]
[425934794,1782037900000,-6740.75,0.00029589,2]
[425934734,1782037900000,-592.99,0.00029589,2]
[425934769,1782037900000,-4255.92,0.00029589,2]
[425934767,1782037900000,-3292.77,0.00029589,2]
[425934781,1782037900000,-958.6,0.00029589,2]
[425934765,1782037900000,-500.0,0.00029589,2]
[425934741,1782037900000,-500.0,0.00029589,2]
[425934763,1782037900000,-500.0,0.00029589,2]
[425934736,1782037900000,-500.0,0.00029589,2]
[425934739,1782037900000,-500.0,0.00029589,2]
[425934738,1782037900000,-449.1057671,0.00029589,2]
[425934740,1782037900000,-590.33,0.00029589,2]
[425934743,1782037900000,-500.0,0.00029589,2]
[425934745,1782037900000,-500.0,0.00029589,2]
[425934749,1782037900000,-760.72,0.00029589,2]
[425934744,1782037900000,-500.0,0.00029589,2]
[425934746,1782037900000,-500.0,0.00029589,2]
[425934747,1782037900000,-500.0,0.00029589,2]
[425934752,1782037900000,-791.91,0.00029589,2]
[425934748,1782037900000,-382.12,0.00029589,2]
[425934737,1782037900000,-836.69,0.00029589,2]
[425934753,1782037900000,-869.83,0.00029589,2]
[425934754,1782037900000,-1398.44,0.00029589,2]
[425934760,1782037900000,-500.0,0.00029589,2]
[425934758,1782037900000,-500.0,0.00029589,2]
[425934764,1782037900000,-2086.7,0.00029589,2]
[425934761,1782037900000,-2010.0,0.00029589,2]
[425934759,1782037900000,-3841.84,0.00029589,2]
[425934762,1782037900000,-500.0,0.00029589,2]
[425934755,1782037900000,-500.0,0.00029589,2]
[425934766,1782037900000,-500.0,0.00029589,2]
[425934756,1782037900000,-500.0,0.00029589,2]
[425934751,1782037900000,-500.0,0.00029589,2]
[425934750,1782037900000,-500.0,0.00029589,2]
[425934757,1782037900000,-515.73,0.00029589,2]
[425934813,1782037901000,-500.0,0.00029589,2]
[425934810,1782037901000,-189.27,0.00029589,2]
[425934814,1782037901000,-500.0,0.00029589,2]
[425934821,1782037901000,-606.62,0.00029589,2]
[425934817,1782037901000,-509.56,0.00029589,2]
[425934816,1782037901000,-500.0,0.00029589,2]
[425934819,1782037901000,-3344.59,0.00029589,2]
[425934815,1782037901000,-231.62006632,0.00029589,2]
[425934820,1782037901000,-6285.21,0.00029589,2]
[425934822,1782037901000,-6091.66,0.00029589,2]
[425934812,1782037901000,-3874.02,0.00029589,2]
[425934824,1782037901000,-690.61,0.00029589,2]
[425934809,1782037901000,-500.0,0.00029589,2]
[425934799,1782037901000,-500.0,0.00029589,2]
[425934808,1782037901000,-500.0,0.00029589,2]
[425934807,1782037901000,-500.0,0.00029589,2]
[425934804,1782037901000,-736.37,0.00029589,2]
[425934803,1782037901000,-863.82,0.00029589,2]
[425934805,1782037901000,-500.0,0.00029589,2]
[425934800,1782037901000,-500.0,0.00029589,2]
[425934801,1782037901000,-4952.69,0.00029589,2]
[425934796,1782037901000,-584.87,0.00029589,2]
[425934798,1782037901000,-4370.8,0.00029589,2]
[425934802,1782037901000,-500.0,0.00029589,2]
[425934797,1782037901000,-500.0,0.00029589,2]
[425934818,1782037901000,-747.29,0.00029589,2]
[425934811,1782037901000,-500.0,0.00029589,2]
[425934823,1782037901000,-500.0,0.00029589,2]
[425934806,1782037901000,-500.0,0.00029589,2]
[425934826,1782037901000,-500.0,0.00029589,2]
[425934825,1782037901000,-500.0,0.00029589,2]
[425934852,1782037901000,-1501.04,0.00029589,2]
[425934850,1782037901000,-13019.17,0.00029589,2]
[425934847,1782037901000,-7097.95,0.00029589,2]
[425934853,1782037901000,-6988.89724949,0.00029589,2]
[425934846,1782037901000,-500.0,0.00029589,2]
[425934848,1782037901000,-10103.93,0.00029589,2]
[425934843,1782037901000,-4885.48,0.00029589,2]
[425934842,1782037901000,-2630.75,0.00029589,2]
[425934849,1782037901000,-662.83,0.00029589,2]
[425934845,1782037901000,-8907.33,0.00029589,2]
[425934844,1782037901000,-560.49,0.00029589,2]
[425934839,1782037901000,-500.0,0.00029589,2]
[425934851,1782037901000,-530.08855344,0.00029589,2]
[425934840,1782037901000,-746.08,0.00029589,2]
[425934827,1782037901000,-5030.0,0.00029589,2]
[425934837,1782037901000,-500.0,0.00029589,2]
[425934828,1782037901000,-9364.89,0.00029589,2]
[425934829,1782037901000,-500.0,0.00029589,2]
[425934832,1782037901000,-160.94100821,0.00029589,2]
[425934835,1782037901000,-500.0,0.00029589,2]
[425934830,1782037901000,-896.49,0.00029589,2]
[425934831,1782037901000,-6679.24,0.00029589,2]
[425934834,1782037901000,-6334.76,0.00029589,2]
[425934836,1782037901000,-500.0,0.00029589,2]
[425934838,1782037901000,-6938.43,0.00029589,2]
[425934841,1782037901000,-5735.18,0.00029589,2]
[425934833,1782037901000,-500.0,0.00029589,2]
[425934871,1782037903000,-235.07,0.00028601,7]
[425934868,1782037903000,-235.07,0.0002841,30]
[425934873,1782037903000,-235.07,0.00028793,2]
[425934867,1782037903000,-500.0,0.00028219,2]
[425934872,1782037903000,-462.98,0.00028608,7]
[425934866,1782037903000,-500.0,0.00027945,2]
[425934869,1782037903000,-220.13,0.00028416,2]
[425934865,1782037903000,-500.0,0.00027945,2]
[425934870,1782037903000,-500.0,0.00028493,2]
[425934860,1782037903000,-500.0,0.00027397,2]
[425934863,1782037903000,-487.94342227,0.00027671,2]
[425934861,1782037903000,-500.0,0.00027671,2]
[425934858,1782037903000,-476.85775651,0.00027397,2]
[425934862,1782037903000,-12.05657773,0.00027671,2]
[425934859,1782037903000,-23.14224349,0.00027397,2]
[425934855,1782037903000,-165.1,0.00024658,2]
[425934857,1782037903000,-500.0,0.00027397,2]
[425934875,1782037903000,-462.98,0.0002899,30]
[425934864,1782037903000,-500.0,0.00027671,2]
[425934874,1782037903000,-462.98,0.00028799,2]
[425934856,1782037903000,-500.0,0.00027397,2]
[425934878,1782037903000,-462.98,0.00029181,7]
[425934876,1782037903000,-553.30691989,0.00029041,2]
[425934893,1782037903000,-217.46328271,0.00029589,2]
[425934896,1782037903000,-590.75782011,0.00029589,2]
[425934892,1782037903000,-235.07,0.00029177,7]
[425934891,1782037903000,-500.0,0.00029041,2]
[425934894,1782037903000,-4337.80246089,0.00029589,2]
[425934895,1782037903000,-418.0,0.00029589,2]
[425934890,1782037903000,-235.07,0.00028985,30]
[425934888,1782037903000,-500.0,0.00028219,2]
[425934889,1782037903000,-500.0,0.00028767,2]
[425934885,1782037903000,-396.67543,0.00027945,2]
[425934886,1782037903000,-103.32457,0.00027945,2]
[425934883,1782037903000,-462.98,0.00029563,30]
[425934884,1782037903000,-3236.9294678,0.00029589,2]
[425934882,1782037903000,-462.98,0.00029372,2]
[425934880,1782037903000,-367.10711066,0.00029315,2]
[425934879,1782037903000,-132.89288934,0.00029315,2]
[425934881,1782037903000,-500.0,0.00029315,2]
[425934877,1782037903000,-500.0,0.00029041,2]
[425934887,1782037903000,-500.0,0.00028219,2]
[425934901,1782037904000,-567.26,0.00027671,2]
[425934898,1782037904000,-500.0,0.00027397,2]
[425934897,1782037904000,-567.26,0.00027397,2]
[425934900,1782037904000,-172.95345937,0.0002767,2]
[425934899,1782037904000,-827.04654063,0.0002767,2]
[425934902,1782037904000,-165.28678007,0.00027944,2]
[425934930,1782037905000,-500.0,0.00029589,2]
[425934931,1782037905000,-1180.04,0.00029589,2]
[425934933,1782037905000,-7163.35,0.00029589,2]
[425934932,1782037905000,-9528.18,0.00029589,2]
[425934934,1782037905000,-500.0,0.00029589,2]
[425934935,1782037905000,-1301.74,0.00029589,2]
[425934939,1782037905000,-922.78,0.00029589,2]
[425934937,1782037905000,-3935.77,0.00029589,2]
[425934938,1782037905000,-500.0,0.00029589,2]
[425934936,1782037905000,-500.0,0.00029589,2]
[425934940,1782037905000,-1073.5,0.00029589,2]
[425934942,1782037905000,-500.0,0.00029589,2]
[425934943,1782037905000,-9999.22,0.00029589,2]
[425934944,1782037905000,-5836.17,0.00029589,2]
[425934945,1782037905000,-550.71783227,0.00029589,2]
[425934949,1782037905000,-730.93,0.00029589,2]
[425934947,1782037905000,-623.8851682,0.00029589,2]
[425934950,1782037905000,-500.0,0.00029589,2]
[425934946,1782037905000,-4485.52,0.00029589,2]
[425934952,1782037905000,-500.0,0.00029589,2]
[425934951,1782037905000,-500.0,0.00029589,2]
[425934928,1782037905000,-500.0,0.00029589,2]
[425934941,1782037905000,-1451.53,0.00029589,2]
[425934927,1782037905000,-500.0,0.00029589,2]
[425934913,1782037905000,-567.26,0.00028767,2]
[425934922,1782037905000,-1115.01,0.00029589,2]
[425934904,1782037905000,-567.26,0.00027945,2]
[425934905,1782037905000,-249.48601448,0.00028218,2]
[425934903,1782037905000,-834.71321993,0.00027944,2]
[425934906,1782037905000,-750.51398552,0.00028218,2]
[425934912,1782037905000,-500.0,0.00028767,2]
[425934908,1782037905000,-500.0,0.00028493,2]
[425934911,1782037905000,-500.0,0.00028767,2]
[425934910,1782037905000,-567.26,0.00028493,2]
[425934907,1782037905000,-567.26,0.00028219,2]
[425934909,1782037905000,-500.0,0.00028493,2]
[425934926,1782037905000,-4656.76,0.00029589,2]
[425934914,1782037905000,-285.83,0.00029041,2]
[425934917,1782037905000,-500.0,0.00029315,2]
[425934915,1782037905000,-500.0,0.00029041,2]
[425934919,1782037905000,-235.07,0.00029369,2]
[425934918,1782037905000,-500.0,0.00029315,2]
[425934929,1782037905000,-523.3,0.00029589,2]
[425934920,1782037905000,-235.07,0.00029561,30]
[425934924,1782037905000,-500.0,0.00029589,2]
[425934925,1782037905000,-500.0,0.00029589,2]
[425934923,1782037905000,-4071.99,0.00029589,2]
[425934948,1782037905000,-1479.66,0.00029589,2]
[425934916,1782037905000,-567.26,0.00029041,2]
[425934953,1782037905000,-297.1632022,0.00029589,2]
[425934921,1782037905000,-2907.259719,0.00029589,2]
[425934955,1782037905000,-500.0,0.00029589,2]
[425934985,1782037905000,-500.0,0.00029589,2]
[425934984,1782037905000,-6386.84,0.00029589,2]
[425934983,1782037905000,-1221.43,0.00029589,2]
[425934987,1782037905000,-8696.2,0.00029589,2]
[425934989,1782037905000,-500.0,0.00029589,2]
[425934990,1782037905000,-4404.74,0.00029589,2]
[425934993,1782037905000,-4094.7602403,0.00029589,2]
[425934991,1782037905000,-4194.76,0.00029589,2]
[425934992,1782037905000,-578.26,0.00029589,2]
[425934988,1782037905000,-624.23,0.00029589,2]
[425934986,1782037905000,-500.0,0.00029589,2]
[425934995,1782037905000,-6530.5997597,0.00029589,2]
[425934999,1782037905000,-582.18,0.00029589,2]
[425934998,1782037905000,-500.0,0.00029589,2]
[425934997,1782037905000,-650.62,0.00029589,2]
[425935000,1782037905000,-1025.47,0.00029589,2]
[425934996,1782037905000,-500.0,0.00029589,2]
[425935001,1782037905000,-500.0,0.00029589,2]
[425935004,1782037905000,-547.76145139,0.00029589,2]
[425935002,1782037905000,-3267.69,0.00029589,2]
[425935003,1782037905000,-500.0,0.00029589,2]
[425935005,1782037905000,-2771.44057358,0.00029589,2]
[425934994,1782037905000,-567.26,0.00029315,2]
[425934978,1782037905000,-3382.74,0.00029589,2]
[425934982,1782037905000,-500.0,0.00029589,2]
[425934980,1782037905000,-3846.12,0.00029589,2]
[425934958,1782037905000,-5736.86,0.00029589,2]
[425934959,1782037905000,-3337.66,0.00029589,2]
[425934961,1782037905000,-656.66,0.00029589,2]
[425934957,1782037905000,-500.0,0.00029589,2]
[425934962,1782037905000,-7741.98,0.00029589,2]
[425934956,1782037905000,-500.0,0.00029589,2]
[425934960,1782037905000,-9276.24,0.00029589,2]
[425934963,1782037905000,-500.0,0.00029589,2]
[425934981,1782037905000,-500.0,0.00029589,2]
[425934968,1782037905000,-8742.6,0.00029589,2]
[425934966,1782037905000,-611.44,0.00029589,2]
[425934965,1782037905000,-500.0,0.00029589,2]
[425934967,1782037905000,-500.0,0.00029589,2]
[425934969,1782037905000,-4906.25,0.00029589,2]
[425934977,1782037905000,-500.0,0.00029589,2]
[425934972,1782037905000,-831.38,0.00029589,2]
[425934976,1782037905000,-500.0,0.00029589,2]
[425934974,1782037905000,-500.0,0.00029589,2]
[425934979,1782037905000,-500.0,0.00029589,2]
[425934975,1782037905000,-798.82,0.00029589,2]
[425934970,1782037905000,-500.0,0.00029589,2]
[425934971,1782037905000,-6319.14,0.00029589,2]
[425934973,1782037905000,-521.32,0.00029589,2]
[425934964,1782037905000,-7069.12,0.00029589,2]
[425934954,1782037905000,-869.85,0.00029589,2]
[425935006,1782037906000,-1170.22433013,0.00029589,2]
[425935007,1782037906000,-643.00953446,0.00028492,2]
[425935008,1782037913000,150.0,0.00030136,120]
[425935010,1782037943000,238.56986641,0.000301,120]
[425935011,1782037982000,-336.99316037,0.00013615,2]
[425935017,1782038037000,-500.0,0.00013614,2]
[425935027,1782038090000,-153.0,0.00014975,2]
[425935030,1782038144000,-152.0,0.00014975,2]
[425935033,1782038197000,-150.0,0.00014975,2]
[425935035,1782038250000,-153.0,0.00014974,2]
[425935041,1782038304000,-150.0,0.00014974,2]
[425935042,1782038357000,-267.00566128,0.00014973,2]
[425935043,1782038411000,-593.10676882,0.00014973,2]
[425935044,1782038464000,-152.0,0.00014972,2]
[425935046,1782038643000,-152.0,0.00014971,2]
[425935047,1782038696000,-597.21124823,0.0001497,2]
[425935055,1782038722000,150.0,0.00030136,120]
[425935056,1782038749000,-300.0,0.00014969,2]
[425935059,1782038803000,-250.0,0.00014,2]
[425935060,1782038856000,-271.13,0.00013972,2]
[425935063,1782038910000,-151.0,0.00013972,2]
[425935065,1782038963000,-153.0,0.00013972,2]
[425935066,1782038963000,-151.0,0.00013972,2]
[425935067,1782038963000,-153.0,0.00013972,2]
[425935069,1782038963000,-151.0,0.00013972,2]
[425935068,1782038963000,-151.0,0.00013972,2]
[425935070,1782038963000,-153.0,0.00013972,2]
[425935071,1782038963000,-500.15712861,0.00013985,2]
[425935073,1782038963000,-528.40272213,0.00013985,2]
[425935074,1782038963000,-48.9058324,0.00013985,2]
[425935072,1782038963000,-500.0,0.00013985,2]